Cogmind - Beta 15 @@@ ROGUE MODE // 2025.06.05 @ 03:29:59 Player: CL-1C0 Result: Self-destructed Performance ------------- Evolutions (4) 2000 Regions Visited (7) 1400 Robots Destroyed (4) 20 Value Destroyed (86) 86 Prototype IDs (0) 0 Alien Tech Used (0) 0 Bonus (1862) 1862 TOTAL SCORE: 5368 Bonus ------- Pacifist 1325 Follower Combat Kills 37 Entered DSFs 500 Cogmind --------- Core Integrity 688/850 Matter 300/300 Energy 99/100 System Corruption 0% Temperature Cool (0) Movement Core (50) Location -6/Factory Parts ------- > --- POWER (1) -------- (None) > --- PROPULSION (6) --- (None) > --- UTILITY (6) ------ Improved Signal Interpreter Improved Hacking Suite Improved Hacking Suite Improved Hacking Suite > --- WEAPON (2) ------- Katana > --- INVENTORY (5) ---- Improved Sensor Array Stasis Canceller Stasis Canceller Peak State ------------ > --- POWER ------------ (None) > --- PROPULSION ------- (None) > --- UTILITY ---------- Cloaking Device Improved Hacking Suite Improved Hacking Suite Improved Hacking Suite Authchip [R/Combat] > --- WEAPON ----------- Katana > --- INVENTORY -------- (None) [Rating: 27] Favorites ----------- Power None Propulsion VTOL Module Treads Light Treads Flight Unit VTOL Module Utility Improved Hacking Suite Device Cloaking Device Processor Improved Signal Interpreter Hackware Improved Hacking Suite Weapon Katana Slashing Weapon Katana Build | -11 -10 -10 -9 -8 -7 -7 -6 ------- Run | Yrd Mat Min Mat Mat Fac DSF Fac Slots Evolved 8 | . . . 2 2 2 . 2 Power . | . . . . . . . . Propulsion 4 | . . . . 2 1 . 1 Utility 4 | . . . 2 . 1 . 1 Weapon . | . . . . . . . . Parts Attached 16 | 1 . . 1 6 1 . 7 Power . | . . . . . . . . Engine . | . . . . . . . . Core . | . . . . . . . . Reactor . | . . . . . . . . Propulsion 6 | 1 . . 1 4 . . . Treads 2 | 1 . . 1 . . . . Leg . | . . . . . . . . Wheel . | . . . . . . . . Hover . | . . . . . . . . Flight 4 | . . . . 4 . . . Utility 8 | . . . . 1 1 . 6 Device 1 | . . . . . . . 1 Storage . | . . . . . . . . Processor 3 | . . . . 1 1 . 1 Hackware 4 | . . . . . . . 4 Protection . | . . . . . . . . Artifact . | . . . . . . . . Weapon 2 | . . . . 1 . . 1 Energy Gun . | . . . . . . . . Energy Cannon . | . . . . . . . . Ballistic Gun . | . . . . . . . . Ballistic Cannon . | . . . . . . . . Launcher . | . . . . . . . . Special Weapon . | . . . . . . . . Impact Weapon . | . . . . . . . . Slashing Weapon 2 | . . . . 1 . . 1 Piercing Weapon . | . . . . . . . . Special Melee Weapon . | . . . . . . . . Unidentified Prototypes . | . . . . . . . . Parts Lost 5 | . . . 1 . . 3 1 Power . | . . . . . . . . Propulsion 4 | . . . 1 . . 3 . Utility 1 | . . . . . . . 1 Weapon . | . . . . . . . . Highest Loss Streak 3 | . . . 1 . . 3 1 To Critical Strikes . | . . . . . . . . Average Backups 1 | 4 . . 1 . 1 2 1 Power . | 1 . . . . . . . Propulsion . | 2 . . 1 . . . . Utility . | . . . . . . 1 1 Weapon . | 1 . . . . 1 1 . Tool/Special . | . . . . . . . . Unused Backups 3 | . . . . . . . 3 Power . | . . . . . . . . Propulsion . | . . . . . . . . Utility 3 | . . . . . . . 3 Weapon . | . . . . . . . . Tool/Special . | . . . . . . . . Average Slot Usage (%) 28 | . 14 14 12 42 46 36 32 Treads 4 | . 14 14 12 . . . . Flight 7 | . . . . 32 30 20 . Device 2 | . . . . . . . 5 Processor 2 | . . . . 4 7 11 1 Hackware 8 | . . . . . . . 19 Slashing Weapon 3 | . . . . 5 7 4 5 Peak Build Rating 27 | . 1 1 2 14 18 18 27 Average Rating 13 | . 1 1 1 11 17 12 23 On Entrance 5 | 6 1 1 1 1 14 18 2 Naked Turns 11 | . . . . 1 . 10 . Heaviest Build 3 | . . . . 3 3 3 3 Greatest Support 16 | 3 3 3 3 16 16 16 3 Greatest Overweight (x) . | . . . . . . . . Average Overweight (x) . | . . . . . . . . Largest Inventory Capacity 5 | 5 5 5 5 5 5 5 5 Average Capacity 5 | 5 5 5 5 5 5 5 5 Most Carried 5 | 4 . . 4 4 1 5 4 Average Carried 1 | 2 . . 1 . 1 2 1 Final Capacity 5 | 5 5 5 5 5 5 5 5 Final Carried 5 | . . . 4 1 1 5 3 Class Distribution -------------------- 46% | Hacker-Mutant 35% | Mutant 17% | Sprinter Dominant Class ---------------- Mutant | -10/Materials Mutant | -10/Mines Mutant | -9/Materials Sprinter | -8/Materials Sprinter | -7/Factory Mutant | -7/DSF Hacker-Mutant | -6/Factory Resources | -11 -10 -10 -9 -8 -7 -7 -6 ----------- Run | Yrd Mat Min Mat Mat Fac DSF Fac Matter Collected 325 | 200 . . 5 . . . 120 Remotely . | . . . . . . . . Salvage Created 131 | . . . . . . . 131 Parts 13 | . . . . . . . 13 Haulers Intercepted . | . . . . . . . . Recyclers Shooed 1 | . . . . . . . 1 Parts Field Recycled . | . . . . . . . . Retrieved Matter . | . . . . . . . . Parts Self-Destructed . | . . . . . . . . Prevented . | . . . . . . . . Kills | -11 -10 -10 -9 -8 -7 -7 -6 ------- Run | Yrd Mat Min Mat Mat Fac DSF Fac Combat Hostiles Destroyed 1 | . . . . . . . 1 Melee 1 | . . . . . . . 1 Classes Destroyed 4 | . . . . . . . 4 Worker 1 | . . . . . . . 1 Builder 1 | . . . . . . . 1 Operator 1 | . . . . . . . 1 Sentry 1 | . . . . . . . 1 Best Kill Streak 2 | . . . . . . . 2 Combat Bots Only 1 | . . . . . . . 1 Max Kills in Single Turn 1 | . . . . . . . 1 Gunslinging . | . . . . . . . . Exploded . | . . . . . . . . Melee 1 | . . . . . . . 1 Uniques/NPCs Destroyed . | . . . . . . . . Combat | -11 -10 -10 -9 -8 -7 -7 -6 -------- Run | Yrd Mat Min Mat Mat Fac DSF Fac Hostile Shots Fired 164 | . 7 2 58 16 . 26 55 Missed 83 | . 3 1 28 11 . 12 28 Hits 81 | . 4 1 30 5 . 14 27 Melee 9 | . . . . . . 9 . Projectile 72 | . 4 1 30 5 . 5 27 AOE 3 | . . . . . . 3 . Critical Strikes 6 | . . . . . . 6 . Damage Taken 1200 | . 35 9 382 65 . 493 216 Core 788 | . 18 9 155 51 . 393 162 Absorbed by Shields . | . . . . . . . . Core Remaining (%) 76 | 100 . 89 61 90 . 43 . Volleys Fired . | . . . . . . . . Largest . | . . . . . . . . Hottest . | . . . . . . . . Shots Fired . | . . . . . . . . Gun . | . . . . . . . . Cannon . | . . . . . . . . Launcher . | . . . . . . . . Special . | . . . . . . . . Kinetic . | . . . . . . . . Thermal . | . . . . . . . . Explosive . | . . . . . . . . Electromagnetic . | . . . . . . . . Robot Hit Streak . | . . . . . . . . Robot Miss Streak . | . . . . . . . . Penetration Max . | . . . . . . . . Secondary Targets . | . . . . . . . . Shots Hit Robots 7 | . . . . . . . 7 Core Hits 6 | . . . . . . . 6 Critical Kills . | . . . . . . . . Critical Parts Destroyed . | . . . . . . . . Critical Strikes . | . . . . . . . . Melee Attacks 28 | . . . . 8 . 1 19 Impact . | . . . . . . . . Slashing 28 | . . . . 8 . 1 19 Piercing . | . . . . . . . . Sneak Attacks 4 | . . . . . . . 4 Combat Hostiles . | . . . . . . . . Follow-up Attacks . | . . . . . . . . Damage Inflicted 388 | . . . 6 . . . 382 Guns . | . . . . . . . . Cannons . | . . . . . . . . Explosions . | . . . . . . . . Melee 382 | . . . . . . . 382 Ramming 6 | . . . 6 . . . . Kinetic . | . . . . . . . . Thermal . | . . . . . . . . Explosive . | . . . . . . . . Electromagnetic . | . . . . . . . . Impact . | . . . . . . . . Slashing 382 | . . . . . . . 382 Piercing . | . . . . . . . . Highest Corruption 2 | . . . 2 . . . . Average Corruption 2 | . . . 2 . . . . Corruption Purged . | . . . . . . . . Corruption Blocked . | . . . . . . . . Overload Shots . | . . . . . . . . Overflow Damage 34 | . . . . . . . 34 Projectiles . | . . . . . . . . Explosions . | . . . . . . . . Melee 34 | . . . . . . . 34 Knockbacks . | . . . . . . . . Impact . | . . . . . . . . Kinetic . | . . . . . . . . Secondary . | . . . . . . . . Self-Inflicted Damage 1 | . . . 1 . . . . Shots . | . . . . . . . . Rammed 5 | . . . 5 . . . . Targets Rammed 5 | . . . 5 . . . . Kicked . | . . . . . . . . Crushed . | . . . . . . . . Highest Temperature . | . . . . . . . . Average Temperature . | . . . . . . . . Received Heat Transfer 240 | . . . 153 18 . . 69 Siege Activations . | . . . . . . . . Martial Activations . | . . . . . . . . Shielding Activations . | . . . . . . . . Robots Disrupted . | . . . . . . . . Combat Hostiles . | . . . . . . . . Robots Corrupted . | . . . . . . . . Combat Hostiles . | . . . . . . . . Parts Fried . | . . . . . . . . Impact Corruptions . | . . . . . . . . Robots Melted . | . . . . . . . . Combat Hostiles . | . . . . . . . . Parts Melted . | . . . . . . . . Heat Transferred . | . . . . . . . . Parts Sabotaged . | . . . . . . . . Parts Stolen . | . . . . . . . . Parts Stripped . | . . . . . . . . Power Chain Reactions . | . . . . . . . . Alert | -11 -10 -10 -9 -8 -7 -7 -6 ------- Run | Yrd Mat Min Mat Mat Fac DSF Fac Maximum Alert Level . | . . . . . . . . Low Security (%) 100 | 100 100 100 100 100 100 100 100 Level 1 . | . . . . . . . . Level 2 . | . . . . . . . . Level 3 . | . . . . . . . . Level 4 . | . . . . . . . . Level 5 . | . . . . . . . . High Security . | . . . . . . . . Max Security . | . . . . . . . . Peak Influence 158 | . 28 3 39 16 . 1 158 Initial 3 | . . 3 . . . . . Average 10 | . 11 3 8 3 . . 16 Influence Increases 358 | . 28 . 49 23 . 1 257 Destroy 0b10 Robot/C 140 | . . . . . . . 140 Destroy 0b10 Robot/NC 20 | . . . . . . . 20 Destroy Leader 22 | . . . . . . . 22 Allied During Kill 12 | . . . . . . . 12 Successful Hack 48 | . 28 . 4 . . . 16 Disable Machine 15 | . . . . . . . 15 Destroy Structure 26 | . . . . 8 . 1 17 Partial Spotted 45 | . . . 15 15 . . 15 Lose Combat Pursuer 30 | . . . 30 . . . . Influence Decreases 220 | . 20 5 52 22 1 . 120 Entered New Map 10 | . . 5 3 . 1 . 1 Time Decay 150 | . 20 . 39 22 . . 69 Lost Part 20 | . . . 10 . . . 10 Lost Ally 40 | . . . . . . . 40 Squads Dispatched 6 | . . . 1 1 . 1 3 Investigation 1 | . . . 1 . . . . Extermination . | . . . . . . . . Reinforcement 5 | . . . . 1 . 1 3 Assault . | . . . . . . . . Garrison . | . . . . . . . . Intercept . | . . . . . . . . Searches Triggered . | . . . . . . . . Construction Impeded 1 | . . . . . . . 1 Haulers Reinforced . | . . . . . . . . Active Scanning Responses . | . . . . . . . . Cargo Convoy Interrupts . | . . . . . . . . Stealth | -11 -10 -10 -9 -8 -7 -7 -6 --------- Run | Yrd Mat Min Mat Mat Fac DSF Fac Distress Signals 4 | . . . 1 . . . 3 Communications Jammed . | . . . . . . . . Distress Signals . | . . . . . . . . Times Spotted 43 | . 4 3 18 6 . 4 8 Peak Tracking Total 15 | . 4 3 15 5 . 4 6 Tactical Retreats 1 | . . . 1 . . . . Traps | -11 -10 -10 -9 -8 -7 -7 -6 ------- Run | Yrd Mat Min Mat Mat Fac DSF Fac Traps Triggered 3 | . . . 2 . . 1 . Indirectly . | . . . . . . . . Trap Hack Attempts . | . . . . . . . . Triggered . | . . . . . . . . Disarmed . | . . . . . . . . Reprogrammed . | . . . . . . . . Reused . | . . . . . . . . Traps Extracted . | . . . . . . . . Installed . | . . . . . . . . Triggered . | . . . . . . . . Machines | -11 -10 -10 -9 -8 -7 -7 -6 ---------- Run | Yrd Mat Min Mat Mat Fac DSF Fac Machines Disabled 1 | . . . . . . . 1 Max in Single Turn 1 | . . . . . . . 1 Machines Repaired . | . . . . . . . . Machines Dismantled . | . . . . . . . . Machines Sabotaged . | . . . . . . . . Overloaded Fab Kills . | . . . . . . . . Hacking | -11 -10 -10 -9 -8 -7 -7 -6 --------- Run | Yrd Mat Min Mat Mat Fac DSF Fac Machines Accessed 7 | . 2 . 1 . 1 . 3 Terminals 6 | . 2 . 1 . 1 . 2 Fabricators 1 | . . . . . . . 1 Repair Stations . | . . . . . . . . Recycling Units . | . . . . . . . . Scanalyzers . | . . . . . . . . Garrison Access . | . . . . . . . . Total Hacks 19 | . 3 . 3 . 2 . 11 Successful 11 | . 2 . 1 . 1 . 7 Failed 8 | . 1 . 2 . 1 . 4 Catastrophic 3 | . 1 . 1 . . . 1 Database Lockouts . | . . . . . . . . Manual 10 | . . . 1 . . . 9 Terminals 17 | . 3 . 3 . 2 . 9 Fabricators 2 | . . . . . . . 2 Repair Stations . | . . . . . . . . Recycling Units . | . . . . . . . . Scanalyzers . | . . . . . . . . Garrison Access . | . . . . . . . . Terminal Hacks 8 | . 2 . 1 . 1 . 4 Robot Schematic 1 | . . . . . . . 1 Open DSF 1 | . . . . . 1 . . Level Access Points 1 | . . . . . . . 1 Emergency Access Points 2 | . 1 . 1 . . . . Terminal Index 1 | . . . . . . . 1 Recall Reinforcements 1 | . . . . . . . 1 Zone Layout 1 | . 1 . . . . . . Fabricator Hacks 2 | . . . . . . . 2 Load Schematic 1 | . . . . . . . 1 Build 1 | . . . . . . . 1 Repair Station Hacks . | . . . . . . . . Recycling Unit Hacks . | . . . . . . . . Scanalyzer . | . . . . . . . . Garrison Access Hacks . | . . . . . . . . Unauthorized Hacks 1 | . . . . . . . 1 Terminals 1 | . . . . . . . 1 Operators 1 | . . . . . . . 1 Fabricators . | . . . . . . . . Repair Stations . | . . . . . . . . Recycling Units . | . . . . . . . . Scanalyzers . | . . . . . . . . Garrison Access . | . . . . . . . . Data Cores Recovered . | . . . . . . . . Used . | . . . . . . . . Hacking Detections 6 | . 2 . 1 . 1 . 2 Full Trace Events . | . . . . . . . . Feedback Events . | . . . . . . . . Feedback Blocked . | . . . . . . . . Robot Schematics Acquired 1 | . . . . . . . 1 Robots Built 3 | . . . . . . . 3 Authchips 1 | . . . . . . . 1 Time 58 | . . . . . . . 58 Total Robot Build Rating 9 | . . . . . . . 9 Part Schematics Acquired . | . . . . . . . . Parts Built . | . . . . . . . . Authchips . | . . . . . . . . Time . | . . . . . . . . Total Part Build Rating . | . . . . . . . . Parts Repaired . | . . . . . . . . Time . | . . . . . . . . Parts Recycled . | . . . . . . . . Recycled Matter . | . . . . . . . . Retrieved Matter . | . . . . . . . . Retrieved Components . | . . . . . . . . Parts Scanalyzed . | . . . . . . . . Part Schematics Acquired . | . . . . . . . . Parts Damaged . | . . . . . . . . Bothacking | -11 -10 -10 -9 -8 -7 -7 -6 ------------ Run | Yrd Mat Min Mat Mat Fac DSF Fac Used RIF Installer . | . . . . . . . . Robots Hacked . | . . . . . . . . Non-combat . | . . . . . . . . Combat . | . . . . . . . . Robot Hacks Applied . | . . . . . . . . Relay Couplers Released . | . . . . . . . . Fabnet Peak Effective % . | . . . . . . . . Robots Rewired . | . . . . . . . . Allies Hacked . | . . . . . . . . Hacks Repelled . | . . . . . . . . Allies | -11 -10 -10 -9 -8 -7 -7 -6 -------- Run | Yrd Mat Min Mat Mat Fac DSF Fac Total Allies 3 | . . . . . . . 3 Largest Group 3 | . . . . . . . 3 Highest-Rated Group 75 | . . . . . . . 75 Highest-Rated Ally 25 | . . . . . . . 25 Total Orders . | . . . . . . . . Ally Attacks 20 | . . . . . . . 20 Total Damage 441 | . . . . . . . 441 Kills 7 | . . . . . . . 7 Allies Corrupted . | . . . . . . . . Allies Melted . | . . . . . . . . Intel | -11 -10 -10 -9 -8 -7 -7 -6 ------- Run | Yrd Mat Min Mat Mat Fac DSF Fac Active Infowar (turns) 19 | . . . . . . . 19 Cloaking 19 | . . . . . . . 19 Robot Analysis Total . | . . . . . . . . Derelict Logs Recovered . | . . . . . . . . Drone Launches . | . . . . . . . . Drone Recoveries . | . . . . . . . . Exploration | -11 -10 -10 -9 -8 -7 -7 -6 ------------- Run | Yrd Mat Min Mat Mat Fac DSF Fac Turns Passed 606 | 3 44 11 122 98 4 50 274 Spaces Moved 889 | 1 88 22 218 213 8 69 270 Core 642 | 1 88 22 218 . . 43 270 Treads . | . . . . . . . . Legs . | . . . . . . . . Wheels . | . . . . . . . . Hover . | . . . . . . . . Flight 247 | . . . . 213 8 26 . Fastest Speed 26 | 50 50 50 50 26 26 26 50 Average Speed 44 | 50 50 50 50 31 26 41 50 Slowest Speed 50 | 50 50 50 50 32 26 50 50 Overloaded Moves . | . . . . . . . . Propulsion Burnouts . | . . . . . . . . Robots Hopped 2 | . . . . 2 . . . Potential Cave-ins . | . . . . . . . . Cave-ins Triggered . | . . . . . . . . Exploration Rate (%) 24 | 2 25 11 32 27 1 87 10 Regions Visited 7 Branch Regions 1 Pre-discovered Areas . | . . . . . . . . Known Exits Taken 2 | . . . . 1 1 . . Unknown Exits Taken 4 | 1 1 1 1 . . . . Scrap Searched . | . . . . . . . . Spaces Dug 18 | . . . . 8 . 1 9 Terrain Destroyed 18 | . . . . 8 . 1 9 Melee 18 | . . . . 8 . 1 9 Projectile . | . . . . . . . . AOE . | . . . . . . . . Terrain Rammed . | . . . . . . . . Walls Destroyed . | . . . . . . . . Machines Disabled . | . . . . . . . . Actions | -11 -10 -10 -9 -8 -7 -7 -6 --------- Run | Yrd Mat Min Mat Mat Fac DSF Fac Total 1041 | 5 87 21 227 227 8 87 379 Wait 81 | . . . . 1 . . 80 Move 878 | . 87 21 217 208 7 68 270 Hop 2 | . . . . 2 . . . Pick Up 12 | . . . 4 1 . 4 3 Fast Attach 6 | . . . 1 2 1 . 2 Attach 10 | 1 . . . 4 . . 5 Detach . | . . . . . . . . Swap . | . . . . . . . . Drop 5 | 4 . . . 1 . . . Fire . | . . . . . . . . Melee 28 | . . . . 8 . 1 19 Ram 1 | . . . 1 . . . . Kick . | . . . . . . . . Crush 4 | . . . 4 . . . . Escape Stasis 14 | . . . . . . 14 . Rewire . | . . . . . . . . Trap . | . . . . . . . . Miscellaneous . | . . . . . . . . Route ------- -11/Scrapyard -10/Materials -10/Mines -9/Materials (discovered 2 exits: [*Mat] / [*Min]) -8/Materials -7/Factory -7/DSF -6/Factory (discovered 4 exits: *Fac x4) History --------- Turn | Location | Event 1 | -11/Scrapyard | Released all parts (6) 4 | -11/Scrapyard | Discovered new exit (range 0) 4 | -11/Scrapyard | Entered Materials 46 | -10/Materials | Discovered new exit (range 6) 48 | -10/Materials | Entered Mines 55 | -10/Mines | Discovered new exit (range 9) 59 | -10/Mines | Entered Materials 59 | -9/Materials | Evolved 2 slots: Utility x2 150 | -9/Materials | Discovered new exit (range 6) 173 | -9/Materials | Discovered new exit (range 16) 181 | -9/Materials | Entered another Materials area 181 | -8/Materials | Evolved 2 slots: Propulsion x2 275 | -8/Materials | Discovered new exit (range 15) 279 | -8/Materials | Identified exit to Factory 279 | -8/Materials | Entered Factory 279 | -7/Factory | Evolved 2 slots: Propulsion x1, Utility x1 283 | -7/Factory | Identified exit to DSF 283 | -7/Factory | Entered DSF 308 | -7/DSF | Additional patrols routed to DSF 325 | -7/DSF | Core integrity fell below 50% 325 | -7/DSF | Discovered new exit (range 15) 333 | -7/DSF | Entered Factory 333 | -6/Factory | Evolved 2 slots: Propulsion x1, Utility x1 343 | -6/Factory | Lost 3 parts (3n) 381 | -6/Factory | Identified exit to Factory 562 | -6/Factory | Fabricated C-17 Slicer? 607 | -6/Factory | Self-destructed Last Messages --------------- 00508_ K-01 Serf collects debris. 00510_ U-05 Engineer builds a Wall. 00520_ Sneak attack on U-05 Engineer. 00520_ U-05 Engineer destroyed. 00538_ TF Node disabled. 00538_ Imp. Sensor Array tumbles out of TF Node. 00538_ Imp. Signal Interpreter tumbles out of TF Node. 00541_ Acquired Imp. Sensor Array. 00543_ Acquired Imp. Signal Interpreter. 00562_ >> FABRICATOR: Completed C-17 Slicer? 00571_ ALERT: Hostiles spotted, dispatching reinforcements to Terminal F016. 00572_ Acquired Stasis Canceller. 00587_ Cloaking Device destroyed. 00587_ ALERT: Construction progress impeded, dispatching reinforcements to local area. 00589_ Y-54 Guardian destroyed. 00591_ Acquired 75 matter. 00595_ U-05 Engineer builds a Wall. 00607_ Acquired 14 matter. Map ----- +----------------------------------------------------+ | ??????????????????????????????????????????????? | | ??????????????????????????????????????????????? | | #????????????????????????????????????????????????? | | #????????????????????????????????????????????????? | | #????????????????????????????????????????????????? | | ?????????????????????????????????????????????????? | | #????????????????????????????????????????????????? | | ???????????????o?????????????????????????????????? | | ?????????????????????????????????????????????????? | | ?????????????????????????????????????????????????? | | ##?????????????????????? ??????????????????????? | | +?????????????????????? c ??????????????????????? | | #?????????????????????? ??????????????????????? | | +?????????????????????# #?????????????????????? | | ##?????????????????????# #?????????????????????? | | ?##################????# #?????????????????????? | | ## # #????? ##????????????????????? | | # # ##### [ #????????????????????? | | # # ! #????????????????????? | | # + ??????????????????? | | # # #????????????????????? | | # # ##### #????????????????????? | | # ! # #?????# ##?????????????????????? | | # ## ######?#[#??????????????????????? | | # ## # ###|###????????????????????? | | ###+###"### # # =@% #????????????????????? | | # + # # g= #????????????????????? | | # """ # " % #????????????????????? | | # "Y" # # # #????????????????????? | | ## " " "" # # # #????????????????????? | | ?# "" # # ] # % #???######???????????? | | ?# """ # # ##gg[##### ! #???????????? | | ?# """ # ####### ## #????????? | | ?# """ # #######Y < #????????? | | ?# # [[=! #???????????? | | ?# "" "" # #"##########+## #???????????? | | ?# ?"???" # ##* #????##???????????? | | ?????????" ######## #?????????????????? | | ?????????" #??????# #?????????????????? | | ?????????" #??????# #?????????????????? | | ?????????? ???????# #?????????????????? | | ?????????? ???????# #?????????????????? | | ??????????#???????# #?????????????????? | | ??????????????????# #?????????????????? | | ??????????????????# #?????????????????? | | ??????????????????# #?????????????????? | | ??????????????????# ![ #?????????????????? | | ??????????????????# #?????????????????? | | ??????????????????##############?????????????????? | | ?????????????????????????????????????????????????? | +----------------------------------------------------+ Best States ------------- Heat Dissipation 37 Energy Generation 5 Energy Capacity 100 Matter Stores 300 Matter Capacity 300 Sight Range 16 Terrain Scan Density 10 Cloak Strength 2 Evasion (%) 64 Melee Accuracy 6 Recoil Reduction 2 Offensive Hacking 36 Authchip Count 1 Item Schematics ----------------- None Robot Schematics ------------------ C-17 Slicer | -6/Factory | Hacked Fabricated ------------ C-17 Slicer | x3 | -6/Factory | Authchip Repaired ---------- Nothing Alien Tech Used ----------------- None Achievements -------------- None Challenges ------------ None Game ------ Seed GyrokineticColdNullifier Manual? 0 Play Time 00:14:19 Cumulative 524.0 hours Start 2025.06.05 @ 03:19:31 End 2025.06.05 @ 03:29:59 Sessions 1 Manual Loads 0 Difficulty Rogue Special Mode None Game No. 584 Rogue 584 Adventurer 0 Explorer 0 Win Type - Total 16 Types 10/0/5/1/0/0/0/0/0/0 Lore% 82 Gallery% 82 Achievement% 82 Wizard Run 0 Options --------- Layout 0 ASCII 0 Keyboard 0 Movement Numpad Keybinds 0 Fullscreen 1 Font 18/SmallcapsGlow Map View 76x50 Zoom Use 0% Tactical HUD 1 Map Filters NONE Filters NONE Steam 1 RUN: abb6d0b7-3bc3-4b07-98d6-e5d120118558